fUST/lending_fUST_20250407
["ID","MTS","AMOUNT","RATE_DAILY","PERIOD"]
[357264749,1743965440722,-15056.72528732,0.00022773,2]
[357264751,1743965440733,-500.0,0.00022873,2]
[357264753,1743965440743,-500.0,0.00022873,2]
[357264755,1743965440754,-500.0,0.00022873,2]
[357264757,1743965440764,-500.0,0.00022873,2]
[357264759,1743965440775,-478.84499412,0.00022873,2]
[357264761,1743965440785,-183.67877057,0.00022873,2]
[357264763,1743965440796,-500.0,0.00022873,2]
[357264765,1743965440807,-163.55268246,0.00022873,2]
[357264767,1743965440818,-500.0,0.00022873,2]
[357264769,1743965440828,-500.0,0.00022873,2]
[357264771,1743965440839,-500.0,0.00022873,2]
[357264773,1743965440849,-500.0,0.00022873,2]
[357264775,1743965440860,-500.0,0.00022873,2]
[357264777,1743965440877,-500.0,0.00022873,2]
[357264780,1743965440889,-500.0,0.00022873,2]
[357264782,1743965440900,-500.0,0.00022873,2]
[357264784,1743965440910,-503.36734113,0.00022873,2]
[357264786,1743965440920,-500.0,0.00022873,2]
[357264788,1743965440931,-500.0,0.00022873,2]
[357264790,1743965440942,-151.0,0.00022886,2]
[357264792,1743965440953,-256.60969646,0.00022886,2]
[357264794,1743965440963,-200.0,0.00022886,2]
[357264796,1743965440974,-500.0,0.00022895,2]
[357264798,1743965440985,-370000.0,0.000229,2]
[357264800,1743965440995,-2369.93226326,0.000229,2]
[357264802,1743965441005,-1719.0,0.00023,2]
[357264804,1743965441016,-419.28457398,0.00023,3]
[357264806,1743965441026,-183.8430431,0.00023014,2]
[357264808,1743965441037,-249.99999999,0.00023169,2]
[357264810,1743965441050,-500.0,0.00023365,2]
[357264812,1743965441061,-4321.14753298,0.00023624,4]
[357264814,1743965441071,-200.0,0.00023659,2]
[357264816,1743965441082,-420.0,0.00023739,2]
[357264818,1743965441092,-1090.96,0.00024132,3]
[357264821,1743965441103,-912.88,0.00024132,3]
[357264823,1743965441119,-207.4,0.00024255,2]
[357264825,1743965441129,-164.6,0.00024256,3]
[357264827,1743965441140,-164.6,0.00024256,3]
[357264829,1743965441151,-164.6,0.00024256,3]
[357264831,1743965441162,-164.6,0.00024256,3]
[357264833,1743965441173,-4321.14753298,0.00024486,5]
[357264835,1743965441184,-500.0,0.00024658,2]
[357264837,1743965441195,-500.0,0.00024658,2]
[357264839,1743965441206,-500.0,0.00024658,2]
[357264841,1743965441217,-500.0,0.00024658,2]
[357264843,1743965441227,-500.0,0.00024658,2]
[357264845,1743965441237,-512.23217852,0.00024658,2]
[357264847,1743965441247,-500.0,0.00024658,2]
[357264849,1743965441258,-500.0,0.00024658,2]
[357264851,1743965441268,-151.0,0.000247,6]
[357264853,1743965441278,-38846.152405,0.000248,2]
[357264855,1743965441287,-500.0,0.00024873,2]
[357264857,1743965441300,-500.0,0.00024873,2]
[357264859,1743965441310,-500.0,0.00024873,2]
[357264861,1743965441319,-500.0,0.00024873,2]
[357264864,1743965441329,-500.0,0.00024873,2]
[357264866,1743965441341,-500.0,0.00024873,2]
[357264868,1743965441350,-500.0,0.00024873,2]
[357264870,1743965441360,-500.0,0.00024873,2]
[357264871,1743965441376,-500.0,0.00024873,2]
[357264874,1743965441386,-112.439662,0.00024873,2]
[357264876,1743965441405,-387.560338,0.00024873,2]
[357264878,1743965441416,-500.0,0.00024873,2]
[357264881,1743965441426,-22660.2555696,0.0002489,2]
[357264883,1743965441437,-326913.018461,0.000249,2]
[357264884,1743965441447,-200.0,0.00025029,2]
[357264886,1743965441457,-3146.67219391,0.00025313,2]
[357264888,1743965441467,-500.0,0.00025327,2]
[357264890,1743965441477,-4321.14753298,0.00025348,6]
[357264893,1743965441487,-215.0738,0.00025624,2]
[357264895,1743965441497,-587.0,0.000258,2]
[357264897,1743965441507,-719.782386,0.00026,2]
[357264899,1743965441516,-160.0,0.00026008,2]
[357264901,1743965441525,-419.28457398,0.00026008,2]
[357264903,1743965441536,-12525.30748765,0.00026008,2]
[357264905,1743965441546,-500.0,0.000261,2]
[357264907,1743965441556,-500.0,0.000262,2]
[357264909,1743965441566,-4321.14753298,0.0002621,6]
[357264911,1743965441575,-500.0,0.000263,2]
[357264913,1743965441585,-200.0,0.00026399,2]
[357264914,1743965441596,-912.217439,0.000264,2]
[357264916,1743965441606,-500.0,0.000264,2]
[357264919,1743965441619,-500.0,0.000265,2]
[357264921,1743965441630,-500.0,0.000265,2]
[357264923,1743965441641,-153.93,0.000266,31]
[357264925,1743965441655,-153.93,0.000266,31]
[357264927,1743965441666,-500.0,0.000266,2]
[357264929,1743965441676,-500.0,0.000266,2]
[357264931,1743965441687,-500.0,0.000267,2]
[357264933,1743965441698,-500.0,0.000267,2]
[357264935,1743965441709,-500.0,0.000268,2]
[357264937,1743965441718,-500.0,0.000268,2]
[357264939,1743965441728,-500.0,0.000269,2]
[357264941,1743965441739,-500.0,0.000269,2]
[357264943,1743965441749,-223.0315306,0.00026993,2]
[357264945,1743965441759,-200.0,0.00027,120]
[357264947,1743965441769,-500.0,0.00027,2]
[357264949,1743965441779,-500.0,0.00027,2]
[357264951,1743965441789,-4321.14753298,0.00027072,7]
[357264953,1743965441799,-500.0,0.000271,2]
[357264968,1743965442016,-500.0,0.000271,2]
[357264969,1743965442026,-500.0,0.000272,2]
[357264970,1743965442036,-500.0,0.000273,2]
[357264971,1743965442047,-12500.0,0.00027371,3]
[357264972,1743965442058,-12500.0,0.00027379,3]
[357264973,1743965442069,-160.0,0.00027379,3]
[357264974,1743965442079,-12500.0,0.00027388,3]
[357264976,1743965442090,-160.0,0.00027388,3]
[357264978,1743965442101,-12500.0,0.00027397,3]
[357264980,1743965442111,-849.23283574,0.00027397,3]
[357264982,1743965442127,-213.493956,0.00027397,120]
[357264984,1743965442138,-500.0,0.00027397,5]
[357264986,1743965442149,-7442.29189872,0.00027397,5]
[357264988,1743965442161,-500.0,0.000274,2]
[357264990,1743965442171,-500.0,0.000275,2]
[357264992,1743965442181,-500.0,0.000276,2]
[357264994,1743965442191,-500.0,0.000277,2]
[357264996,1743965442202,-200.0,0.00027769,2]
[357264998,1743965442213,-4321.14753298,0.00027934,7]
[357265000,1743965442223,-823.0,0.00028041,2]
[357265002,1743965442234,-502.21148346,0.00028252,5]
[357265004,1743965442244,-1000.0,0.00028252,5]
[357265006,1743965442255,-500.0,0.00028252,5]
[357265008,1743965442266,-1000.0,0.00028252,5]
[357265010,1743965442276,-500.0,0.00028252,5]
[357265013,1743965442287,-509.20542168,0.00028252,5]
[357265015,1743965442300,-1012.95706276,0.00028252,5]
[357265017,1743965442310,-543.94367697,0.00028252,5]
[357265019,1743965442320,-1000.0,0.00028352,2]
[357265021,1743965442330,-1000.0,0.00028352,5]
[357265023,1743965442341,-1078.09641296,0.00028352,5]
[357265025,1743965442353,-1000.0,0.00028352,5]
[357265027,1743965442365,-1000.0,0.00028352,5]
[357265029,1743965442378,-500.0,0.00028352,5]
[357265031,1743965442388,-504.11579989,0.00028352,5]
[357265033,1743965442398,-1000.0,0.00028352,5]
[357265035,1743965442409,-1000.0,0.00028352,5]
[357265037,1743965442419,-1000.0,0.00028352,5]
[357265039,1743965442429,-231.28369723,0.00028362,2]
[357265041,1743965442439,-205584.83211488,0.0002871,2]
[357265043,1743965442449,-3146.67219391,0.00028782,2]
[357265045,1743965442459,-4321.14753298,0.00028797,8]
[357265048,1743965442469,-262.72398466,0.00028973,5]
[357265050,1743965442479,-300.0,0.00028973,5]
[357265052,1743965442489,-1982.71407154,0.00029,7]
[357265054,1743965442499,-1982.71407154,0.00029,7]
[357265056,1743965442509,-2895.56903156,0.00029,7]
[357265058,1743965442519,-2895.56903156,0.00029,7]
[357265060,1743965442529,-377015.09071633,0.00029,7]
[357265062,1743965442539,-377015.09071633,0.00029,7]
[357265064,1743965442549,-9651.89677188,0.00029,7]
[357265066,1743965442559,-9651.89677188,0.00029,7]
[357265068,1743965442569,-5657.43287948,0.00029,7]
[357265070,1743965442578,-5657.43287948,0.00029,7]
[357265072,1743965442588,-160.0,0.00029,7]
[357265074,1743965442598,-151.0,0.00029,7]
[357265076,1743965442608,-151.0,0.00029,7]
[357265078,1743965442623,-155.051134,0.00029,7]
[357265079,1743965442633,-155.051134,0.00029,7]
[357265082,1743965442644,-151.0,0.00029,7]
[357265084,1743965442665,-203.511233,0.00029,7]
[357265087,1743965442680,-203.511233,0.00029,7]
[357265089,1743965442691,-151.0,0.00029,7]
[357265091,1743965442702,-151.0,0.00029,7]
[357265093,1743965442712,-151.0,0.00029,7]
[357265095,1743965442722,-151.0,0.00029,7]
[357265097,1743965442733,-151.0,0.00029,7]
[357265100,1743965442744,-151.0,0.00029,7]
[357265102,1743965442755,-151.0,0.00029,7]
[357265104,1743965442765,-151.0,0.00029,2]
[357265106,1743965442775,-151.0,0.00029,7]
[357265108,1743965442786,-152.981406,0.00029,7]
[357265110,1743965442795,-152.981406,0.00029,7]
[357265112,1743965442806,-151.0,0.00029,7]
[357265114,1743965442817,-151.0,0.00029,7]
[357265116,1743965442827,-151.0,0.00029,7]
[357265118,1743965442838,-151.0,0.00029,7]
[357265120,1743965442848,-151.0,0.00029,7]
[357265123,1743965442859,-151.493971,0.00029,7]
[357265125,1743965442874,-151.0,0.00029,7]
[357265127,1743965442885,-160.0,0.00029,7]
[357265129,1743965442895,-441.55642,0.00029,7]
[357265131,1743965442906,-441.55642,0.00029,7]
[357265133,1743965442916,-12525.30748765,0.00029,7]
[357265135,1743965442926,-151.0,0.00029,7]
[357265137,1743965442937,-151.0,0.00029,7]
[357265139,1743965442947,-151.0,0.00029,7]
[357265141,1743965442958,-220.922546,0.00029,7]
[357265143,1743965442969,-151.0,0.00029,7]
[357265145,1743965442979,-220.922546,0.00029,7]
[357265147,1743965442990,-151.524379,0.00029,7]
[357265149,1743965443000,-151.0,0.00029,7]
[357265151,1743965443010,-151.0,0.00029,7]
[357265155,1743965443020,-151.0,0.00029,7]
[357265160,1743965443031,-151.0,0.00029,7]
[357265163,1743965443041,-151.0,0.00029,7]
[357265165,1743965443052,-151.0,0.00029,7]
[357265168,1743965443062,-226.865903,0.00029,7]
[357265171,1743965443072,-226.865903,0.00029,7]
[357265174,1743965443084,-151.0,0.00029,7]
[357265175,1743965443094,-151.0,0.00029,7]
[357265178,1743965443104,-610.295962,0.00029,7]
[357265180,1743965443116,-610.295962,0.00029,7]
[357265182,1743965443127,-200.0,0.00029138,2]
[357265184,1743965443138,-4321.14753298,0.00029659,8]
[357265186,1743965443149,-239.84119403,0.00029731,2]
[357265189,1743965443159,-252.0,0.0003,2]
[357265192,1743965443168,-500.0,0.00030352,5]
[357265194,1743965443178,-1000.0,0.00030352,5]
[357265197,1743965443188,-1000.0,0.00030352,5]
[357265200,1743965443197,-1000.0,0.00030352,5]
[357265202,1743965443206,-500.0,0.00030352,5]
[357265204,1743965443216,-500.0,0.00030352,5]
[357265205,1743965443227,-1152.0,0.00030476,2]
[357265206,1743965443237,-200.0,0.00030508,2]
[357265208,1743965443247,-4321.14753298,0.00030521,9]
[357265210,1743965443257,-500.0,0.00030643,7]
[357265211,1743965443268,-248.71531821,0.000311,2]
[357265213,1743965443283,-4321.14753298,0.00031383,9]
[357265214,1743965443294,-153.93,0.000315,31]
[357265215,1743965443306,-153.93,0.000315,31]
[357265216,1743965443317,-153.93,0.000315,31]
[357265217,1743965443327,-153.93,0.000315,31]
[357265218,1743965443338,-200.0,0.00031878,2]
[357265219,1743965443349,-213.493956,0.00031963,120]
[357265220,1743965443359,-4321.14753298,0.00032245,10]
[357265221,1743965443373,-3146.67219391,0.00032252,2]
[357265222,1743965443384,-257.91778498,0.00032469,2]
[357265223,1743965443395,-1000.0,0.00032877,5]
[357265224,1743965443408,-4321.14753298,0.00033107,11]
[357265225,1743965443419,-1335.0,0.00033123,2]
[357265226,1743965443430,-310.16,0.00033248,2]
[357265227,1743965443441,-418.12414,0.0003383,30]
[357265228,1743965443451,-267.46074303,0.00033838,2]
[357265229,1743965443462,-4321.14753298,0.00033969,11]
[357265231,1743965443473,-765.33,0.000344,2]
[357265233,1743965443483,-2369.93226325,0.0003452,2]
[357265235,1743965443494,-500.0,0.00034825,7]
[357265237,1743965443504,-4321.14753298,0.00034831,12]
[357265238,1743965443515,-277.35679052,0.00035207,2]
[357265239,1743965443525,-151.1,0.00035277,2]
[357265240,1743965443535,-542.0,0.00035277,2]
[357265241,1743965443546,-1478.0,0.00035277,2]
[357265242,1743965443556,-2254.0,0.00035277,2]
[357265243,1743965443567,-500.0,0.00035308,7]
[357265244,1743965443578,-500.0,0.00035616,7]
[357265245,1743965443589,-619.17826477,0.00035616,7]
[357265246,1743965443600,-4321.14753298,0.00035693,12]
[357265247,1743965443610,-3146.67219391,0.00035721,2]
[357265248,1743965443624,-1000.0,0.0003589,2]
[357265249,1743965443635,-178.18700459,0.00036,30]
[357265250,1743965443645,-153.93,0.000363,31]
[357265251,1743965443655,-153.93,0.000363,31]
[357265252,1743965443666,-153.93,0.000363,31]
[357265253,1743965443676,-153.93,0.000363,31]
[357265254,1743965443686,-213.493956,0.0003653,120]
[357265255,1743965443696,-4321.14753298,0.00036555,13]
[357265256,1743965443707,-287.61899177,0.00036576,2]
[357265259,1743965443717,-420.47256183,0.00036823,5]
[357265261,1743965443728,-201.75659287,0.00037335,10]
[357265263,1743965443738,-4321.14753298,0.00037417,13]
[357265265,1743965443750,-685.553,0.0003789,49]
[357265267,1743965443760,-170.91,0.0003789,49]
[357265269,1743965443771,-298.26089446,0.00037945,2]
[357265271,1743965443781,-1500.0,0.00038271,5]
[357265273,1743965443790,-1500.0,0.00038271,5]
[357265275,1743965443800,-542.0,0.00038277,2]
[357265278,1743965443811,-1478.0,0.00038277,2]
[357265280,1743965443821,-2254.0,0.00038277,2]
[357265282,1743965443831,-4321.14753298,0.00038279,14]
[357265284,1743965443841,-166.0,0.00038356,2]
[357265286,1743965443851,-1500.0,0.00038356,5]
[357265288,1743965443861,-1500.0,0.00038371,2]
[357265290,1743965443875,-503.86829957,0.00038371,5]
[357265292,1743965443885,-1500.0,0.00038371,5]
[357265293,1743965443895,-500.0,0.00038371,5]
[357265298,1743965443906,-1500.0,0.00038371,5]
[357265301,1743965443916,-1500.0,0.00038371,5]
[357265304,1743965443926,-4321.14753298,0.00039141,15]
[357265307,1743965443936,-3146.67219391,0.00039191,2]
[357265310,1743965443947,-309.29654756,0.00039314,2]
[357265313,1743965443957,-1001.7867608,0.000394,15]
[357265316,1743965443967,-500.0,0.0003943,7]
[357265319,1743965443978,-500.0,0.00039722,7]
[357265322,1743965443989,-500.0,0.00039887,7]
[357265324,1743965443999,-151.0,0.0004,14]
[357265326,1743965444010,-151.0,0.0004,14]
[357265329,1743965444020,-151.0,0.0004,14]
[357265332,1743965444031,-856.15991958,0.0004,60]
[357265335,1743965444041,-193271.90276817,0.0004,120]
[357265338,1743965444051,-360.0,0.0004,15]
[357265340,1743965444062,-4321.14753298,0.00040003,15]
[357265342,1743965444072,-1500.0,0.00040371,5]
[357265344,1743965444082,-1500.0,0.00040371,5]
[357265346,1743965444091,-1500.0,0.00040371,5]
[357265348,1743965444102,-631.0,0.000407,30]
[357265350,1743965444111,-4321.14753298,0.00040866,16]
[357265352,1743965444128,-167.43551359,0.00041096,2]
[357265354,1743965444138,-213.493956,0.00041096,120]
[357265356,1743965444148,-153.93,0.000412,31]
[357265358,1743965444158,-153.93,0.000412,31]
[357265360,1743965444168,-153.93,0.000412,31]
[357265361,1743965444179,-153.93,0.000412,31]
[357265362,1743965444192,-1000.0,0.00041211,120]
[357265363,1743965444202,-157.926232,0.00041217,3]
[357265364,1743965444212,-150.5,0.0004127,30]
[357265365,1743965444223,-542.0,0.00041277,2]
[357265366,1743965444233,-1478.0,0.00041277,2]
[357265367,1743965444243,-2254.0,0.00041277,2]
[357265368,1743965444253,-150.5,0.0004128,30]
[357265369,1743965444263,-150.5,0.0004129,30]
[357265370,1743965444274,-427.28313656,0.00041656,30]
[357265371,1743965444284,-4321.14753298,0.00041728,16]
[357265373,1743965444294,-2000.0,0.00042,15]
[357265375,1743965444305,-700.35207309,0.00042038,15]
[357265377,1743965444314,-2296.01,0.000425,7]
[357265379,1743965444328,-2000.0,0.000425,15]
[357265381,1743965444338,-2000.0,0.000425,15]
[357265383,1743965444347,-2000.0,0.000425,15]
[357265385,1743965444357,-2000.0,0.000425,15]
[357265386,1743965444369,-4321.14753298,0.0004259,17]
[357265388,1743965444379,-3146.67219391,0.0004266,28]
[357265390,1743965444389,-1000.0,0.00042986,120]
[357265393,1743965444401,-1982.71407154,0.00043,7]
[357265395,1743965444412,-1982.71407154,0.00043,7]
[357265397,1743965444422,-151.0,0.00043,120]
[357265399,1743965444432,-154.283921,0.00043,120]
[357265401,1743965444441,-2895.56903156,0.00043,7]
[357265403,1743965444451,-2895.56903156,0.00043,7]
[357265405,1743965444461,-377015.09071633,0.00043,7]
[357265407,1743965444470,-377015.09071633,0.00043,7]
[357265409,1743965444480,-151.0,0.00043,120]
[357265411,1743965444490,-151.0,0.00043,120]
[357265413,1743965444499,-151.0,0.00043,120]
[357265415,1743965444508,-151.0,0.00043,120]
[357265417,1743965444518,-151.0,0.00043,120]
[357265419,1743965444527,-151.0,0.00043,120]
[357265421,1743965444537,-151.0,0.00043,120]
[357265423,1743965444546,-9651.89677188,0.00043,7]
[357265425,1743965444555,-151.718058,0.00043,30]
[357265427,1743965444565,-9651.89677188,0.00043,7]
[357265429,1743965444575,-5657.43287948,0.00043,7]
[357265431,1743965444586,-5657.43287948,0.00043,7]
[357265433,1743965444595,-151.0,0.00043,120]
[357265435,1743965444605,-151.0,0.00043,120]
[357265437,1743965444618,-151.0,0.00043,120]
[357265439,1743965444629,-151.0,0.00043,30]
[357265441,1743965444639,-151.0,0.00043,30]
[357265444,1743965444659,-151.0,0.00043,120]
[357265446,1743965444670,-151.0,0.00043,120]
[357265448,1743965444681,-151.0,0.00043,120]
[357265450,1743965444691,-151.0,0.00043,120]
[357265452,1743965444702,-151.0,0.00043,120]
[357265454,1743965444712,-151.0,0.00043,30]
[357265456,1743965444723,-151.0,0.00043,120]
[357265459,1743965444734,-151.0,0.00043,120]
[357265461,1743965444744,-151.0,0.00043,120]
[357265463,1743965444754,-151.0,0.00043,120]
[357265465,1743965444764,-151.0,0.00043,120]
[357265467,1743965444775,-155.051134,0.00043,120]
[357265469,1743965444785,-155.051134,0.00043,120]
[357265471,1743965444795,-155.051134,0.00043,120]
[357265473,1743965444805,-155.051134,0.00043,120]
[357265475,1743965444815,-151.0,0.00043,120]
[357265477,1743965444825,-151.0,0.00043,120]
[357265479,1743965444835,-349.8,0.00043,30]
[357265481,1743965444845,-203.511233,0.00043,120]
[357265483,1743965444855,-203.511233,0.00043,120]
[357265485,1743965444870,-203.511233,0.00043,120]
[357265487,1743965444880,-203.511233,0.00043,120]
[357265489,1743965444890,-151.0,0.00043,120]
[357265491,1743965444905,-151.0,0.00043,120]
[357265493,1743965444915,-212.932192,0.00043,120]
[357265495,1743965444925,-151.0,0.00043,120]
[357265497,1743965444935,-151.0,0.00043,120]
[357265499,1743965444945,-151.0,0.00043,120]
[357265501,1743965444954,-151.0,0.00043,120]
[357265504,1743965444964,-151.0,0.00043,120]
[357265505,1743965444974,-151.0,0.00043,120]
[357265507,1743965444984,-151.0,0.00043,120]
[357265510,1743965444994,-262.71154,0.00043,120]
[357265512,1743965445004,-151.0,0.00043,2]
[357265513,1743965445014,-151.0,0.00043,2]
[357265516,1743965445025,-151.0,0.00043,120]
[357265518,1743965445035,-151.0,0.00043,120]
[357265520,1743965445044,-152.981406,0.00043,120]
[357265522,1743965445054,-152.981406,0.00043,120]
[357265524,1743965445064,-152.981406,0.00043,120]
[357265526,1743965445074,-152.981406,0.00043,120]
[357265527,1743965445084,-151.0,0.00043,120]
[357265528,1743965445095,-151.649589,0.00043,120]
[357265529,1743965445106,-151.0,0.00043,120]
[357265531,1743965445119,-151.0,0.00043,120]
[357265533,1743965445129,-151.0,0.00043,120]
[357265535,1743965445139,-151.0,0.00043,120]
[357265536,1743965445149,-151.0,0.00043,120]
[357265538,1743965445159,-151.0,0.00043,120]
[357265539,1743965445169,-151.275305,0.00043,120]
[357265541,1743965445180,-151.0,0.00043,120]
[357265542,1743965445191,-151.0,0.00043,120]
[357265544,1743965445202,-441.55642,0.00043,120]
[357265546,1743965445212,-441.55642,0.00043,120]
[357265548,1743965445442,-441.55642,0.00043,120]
[357265549,1743965445452,-441.55642,0.00043,120]
[357265550,1743965445463,-151.0,0.00043,120]
[357265551,1743965445473,-151.0,0.00043,120]
[357265552,1743965445483,-151.0,0.00043,120]
[357265553,1743965445493,-157.465261,0.00043,120]
[357265554,1743965445503,-151.0,0.00043,120]
[357265555,1743965445513,-151.0,0.00043,120]
[357265556,1743965445522,-220.922546,0.00043,120]
[357265557,1743965445532,-220.922546,0.00043,120]
[357265558,1743965445542,-151.0,0.00043,120]
[357265559,1743965445551,-151.0,0.00043,120]
[357265560,1743965445561,-220.922546,0.00043,120]
[357265561,1743965445571,-220.922546,0.00043,120]
[357265562,1743965445582,-151.0,0.00043,120]
[357265563,1743965445601,-151.0,0.00043,120]
[357265564,1743965445612,-151.0,0.00043,120]
[357265565,1743965445625,-151.0,0.00043,120]
[357265566,1743965445635,-151.0,0.00043,120]
[357265567,1743965445645,-151.0,0.00043,120]
[357265569,1743965445660,-289.362947,0.00043,120]
[357265570,1743965445671,-151.0,0.00043,120]
[357265571,1743965445681,-151.0,0.00043,120]
[357265572,1743965445691,-226.865903,0.00043,120]
[357265573,1743965445702,-226.865903,0.00043,120]
[357265574,1743965445712,-226.865903,0.00043,120]
[357265575,1743965445722,-226.865903,0.00043,120]
[357265576,1743965445732,-151.0,0.00043,120]
[357265577,1743965445742,-151.0,0.00043,120]
[357265578,1743965445753,-151.0,0.00043,120]
[357265579,1743965445764,-151.0,0.00043,120]
[357265580,1743965445775,-610.295962,0.00043,120]
[357265581,1743965445786,-610.295962,0.00043,120]
[357265582,1743965445797,-610.295962,0.00043,120]
[357265584,1743965445808,-610.295962,0.00043,120]
[357265585,1743965445818,-500.0,0.00043,16]
[357265586,1743965445828,-500.0,0.00043,16]
[357265587,1743965445838,-1055.8984608,0.00043014,30]
[357265588,1743965445848,-203.7,0.0004326,120]
[357265589,1743965445858,-203.7,0.0004326,120]
[357265590,1743965445871,-203.7,0.0004326,120]
[357265591,1743965445882,-203.7,0.0004326,120]
[357265592,1743965445892,-203.7,0.0004326,120]
[357265593,1743965445903,-203.7,0.0004326,120]
[357265594,1743965445916,-203.7,0.0004326,120]
[357265595,1743965445929,-203.7,0.0004326,120]
[357265596,1743965445940,-203.7,0.0004326,120]
[357265597,1743965445951,-4321.14753298,0.00043452,17]
[357265598,1743965445962,-2000.0,0.000435,15]
[357265599,1743965445974,-313.21741678,0.00043562,120]
[357265600,1743965445986,-500.0,0.00043835,2]
[357265602,1743965445997,-500.0,0.00043835,2]
[357265603,1743965446008,-500.0,0.00043835,2]
[357265604,1743965446019,-500.0,0.00043835,2]
[357265605,1743965446029,-500.0,0.00043835,2]
[357265606,1743965446039,-500.0,0.00043835,2]
[357265608,1743965446051,-500.0,0.00043835,2]
[357265609,1743965446061,-500.0,0.00043835,2]
[357265610,1743965446072,-500.0,0.00043835,2]
[357265611,1743965446082,-500.0,0.00043835,2]
[357265612,1743965446092,-500.0,0.00043835,2]
[357265613,1743965446102,-500.0,0.00043835,2]
[357265615,1743965446113,-500.0,0.00043835,2]
[357265617,1743965446127,-500.0,0.00043835,2]
[357265618,1743965446138,-235.72610168,0.00043835,2]
[357265620,1743965446148,-500.0,0.00043835,120]
[357265622,1743965446157,-500.0,0.00043835,120]
[357265623,1743965446167,-500.0,0.00043835,120]
[357265624,1743965446177,-500.0,0.00043835,120]
[357265625,1743965446187,-500.0,0.00043835,120]
[357265626,1743965446197,-500.0,0.00043835,120]
[357265627,1743965446206,-500.0,0.00043835,120]
[357265628,1743965446216,-500.0,0.00043835,120]
[357265629,1743965446226,-500.0,0.00043835,120]
[357265630,1743965446237,-500.0,0.00043835,120]
[357265631,1743965446248,-500.0,0.00043835,120]
[357265632,1743965446259,-525.45184906,0.00043835,120]
[357265633,1743965446270,-292.80843183,0.00043835,120]
[357265634,1743965446280,-1710.26,0.00043835,120]
[357265635,1743965446290,-1710.26,0.00043835,120]
[357265636,1743965446301,-1710.26,0.00043835,120]
[357265637,1743965446311,-1710.26,0.00043835,120]
[357265638,1743965446321,-1710.26,0.00043835,120]
[357265639,1743965446333,-1710.26,0.00043835,120]
[357265640,1743965446342,-1710.26,0.00043835,120]
[357265641,1743965446353,-1710.26,0.00043835,120]
[357265642,1743965446363,-1710.26,0.00043835,120]
[357265643,1743965446377,-1710.26,0.00043835,120]
[357265644,1743965446387,-1710.26,0.00043835,120]
[357265645,1743965446398,-1710.26,0.00043835,120]
[357265646,1743965446408,-1710.26,0.00043835,120]
[357265647,1743965446418,-1710.26,0.00043835,120]
[357265648,1743965446428,-1710.26,0.00043835,120]
[357265649,1743965446438,-1710.26,0.00043835,120]
[357265650,1743965446448,-1710.26,0.00043835,120]
[357265651,1743965446458,-1710.26,0.00043835,120]
[357265652,1743965446468,-1710.26,0.00043835,120]